Workbook

Sheet InPut
A1: Se. | B1: التاريخ | C1: اسم الصيدليه | D1: جرد | E1: تاريخ الجرد | F1: وقت الجرد | G1: الاجمالي
A2: 37164 | B2: =VLOOKUP($A:$A,[1]Sheet4!$A$6:$G$828,3,0) ->  | C2: =VLOOKUP($A:$A,[1]Sheet4!$A$6:$G$828,2,0) ->  | D2: محمد | E2: 2020-04-05 | F2: 02:19:27 | G2: =VLOOKUP($A:$A,[1]Sheet4!$A$6:$G$828,4,0) -> 
A3: =A2+1 -> 37165 | B3: =VLOOKUP($A:$A,[1]Sheet4!$A$6:$G$828,3,0) ->  | C3: =VLOOKUP($A:$A,[1]Sheet4!$A$6:$G$828,2,0) ->  | D3: على | E3: 2020-04-05 | F3: 02:19:30 | G3: =VLOOKUP($A:$A,[1]Sheet4!$A$6:$G$828,4,0) -> 
A4: =A3+1 -> 37166 | B4: =VLOOKUP($A:$A,[1]Sheet4!$A$6:$G$828,3,0) ->  | C4: =VLOOKUP($A:$A,[1]Sheet4!$A$6:$G$828,2,0) ->  | D4: على | E4: 2020-04-05 | F4: 02:19:32 | G4: =VLOOKUP($A:$A,[1]Sheet4!$A$6:$G$828,4,0) ->  | J4: الغاء حماية الورقة : 1234
A5: 37167 | B5: =VLOOKUP($A:$A,[1]Sheet4!$A$6:$G$828,3,0) ->  | C5: =VLOOKUP($A:$A,[1]Sheet4!$A$6:$G$828,2,0) ->  | D5: خذها | E5: 2020-04-05 | F5: 02:19:34 | G5: =VLOOKUP($A:$A,[1]Sheet4!$A$6:$G$828,4,0) ->  | J5: المطلوب عند كتابة الكود الموجود في شيت setting
A6: 37168 | B6: =VLOOKUP($A:$A,[1]Sheet4!$A$6:$G$828,3,0) ->  | C6: =VLOOKUP($A:$A,[1]Sheet4!$A$6:$G$828,2,0) ->  | D6: على | E6: 2020-04-05 | F6: 02:19:37 | G6: =VLOOKUP($A:$A,[1]Sheet4!$A$6:$G$828,4,0) ->  | J6: في عمود الجرد يظهر لي الاسم الموجود مقابل الكود
A7: 37169 | B7: =VLOOKUP($A:$A,[1]Sheet4!$A$6:$G$828,3,0) ->  | C7: =VLOOKUP($A:$A,[1]Sheet4!$A$6:$G$828,2,0) ->  | D7: خذها | E7: 2020-04-05 | F7: 02:19:39 | G7: =VLOOKUP($A:$A,[1]Sheet4!$A$6:$G$828,4,0) ->  | J7: ثم اضافة ا لتاريخ والوقت الحالة تلقائي
A8: 37170 | B8: =VLOOKUP($A:$A,[1]Sheet4!$A$6:$G$828,3,0) ->  | C8: =VLOOKUP($A:$A,[1]Sheet4!$A$6:$G$828,2,0) ->  | D8: محمد | E8: 2020-04-05 | F8: 02:19:45 | G8: =VLOOKUP($A:$A,[1]Sheet4!$A$6:$G$828,4,0) -> 
A9: 37171 | B9: =VLOOKUP($A:$A,[1]Sheet4!$A$6:$G$828,3,0) ->  | C9: =VLOOKUP($A:$A,[1]Sheet4!$A$6:$G$828,2,0) ->  | D9: احمد | E9: 2020-04-05 | F9: 02:19:48 | G9: =VLOOKUP($A:$A,[1]Sheet4!$A$6:$G$828,4,0) -> 
A10: 37172 | B10: =VLOOKUP($A:$A,[1]Sheet4!$A$6:$G$828,3,0) ->  | C10: =VLOOKUP($A:$A,[1]Sheet4!$A$6:$G$828,2,0) ->  | D10: احمد | E10: 2020-04-05 | F10: 02:19:53 | G10: =VLOOKUP($A:$A,[1]Sheet4!$A$6:$G$828,4,0) -> 
A11: 37173 | B11: =VLOOKUP($A:$A,[1]Sheet4!$A$6:$G$828,3,0) ->  | C11: =VLOOKUP($A:$A,[1]Sheet4!$A$6:$G$828,2,0) ->  | D11: خذها | E11: 2020-04-05 | F11: 02:19:56 | G11: =VLOOKUP($A:$A,[1]Sheet4!$A$6:$G$828,4,0) -> 
A12: 37174 | B12: =VLOOKUP($A:$A,[1]Sheet4!$A$6:$G$828,3,0) ->  | C12: =VLOOKUP($A:$A,[1]Sheet4!$A$6:$G$828,2,0) ->  | D12: خذها | E12: 2020-04-05 | F12: 02:20:03 | G12: =VLOOKUP($A:$A,[1]Sheet4!$A$6:$G$828,4,0) -> 
A13: 37175 | B13: =VLOOKUP($A:$A,[1]Sheet4!$A$6:$G$828,3,0) ->  | C13: =VLOOKUP($A:$A,[1]Sheet4!$A$6:$G$828,2,0) ->  | D13: احمد | E13: 2020-04-05 | F13: 02:21:16 | G13: =VLOOKUP($A:$A,[1]Sheet4!$A$6:$G$828,4,0) -> 
A14: 37176 | B14: =VLOOKUP($A:$A,[1]Sheet4!$A$6:$G$828,3,0) ->  | C14: =VLOOKUP($A:$A,[1]Sheet4!$A$6:$G$828,2,0) ->  | D14: محمد | E14: 2020-04-05 | F14: 02:23:16 | G14: =VLOOKUP($A:$A,[1]Sheet4!$A$6:$G$828,4,0) -> 
A15: 37177 | B15: =VLOOKUP($A:$A,[1]Sheet4!$A$6:$G$828,3,0) ->  | C15: =VLOOKUP($A:$A,[1]Sheet4!$A$6:$G$828,2,0) ->  | D15: احمد | E15: 2020-04-05 | F15: 02:23:21 | G15: =VLOOKUP($A:$A,[1]Sheet4!$A$6:$G$828,4,0) -> 
A16: 37178 | B16: =VLOOKUP($A:$A,[1]Sheet4!$A$6:$G$828,3,0) ->  | C16: =VLOOKUP($A:$A,[1]Sheet4!$A$6:$G$828,2,0) ->  | D16: محمد | E16: 2020-04-05 | F16: 02:23:38 | G16: =VLOOKUP($A:$A,[1]Sheet4!$A$6:$G$828,4,0) -> 
A17: 37179 | B17: =VLOOKUP($A:$A,[1]Sheet4!$A$6:$G$828,3,0) ->  | C17: =VLOOKUP($A:$A,[1]Sheet4!$A$6:$G$828,2,0) ->  | G17: =VLOOKUP($A:$A,[1]Sheet4!$A$6:$G$828,4,0) -> 
A18: 37180 | B18: =VLOOKUP($A:$A,[1]Sheet4!$A$6:$G$828,3,0) ->  | C18: =VLOOKUP($A:$A,[1]Sheet4!$A$6:$G$828,2,0) ->  | G18: =VLOOKUP($A:$A,[1]Sheet4!$A$6:$G$828,4,0) -> 
A19: 37181 | B19: =VLOOKUP($A:$A,[1]Sheet4!$A$6:$G$828,3,0) ->  | C19: =VLOOKUP($A:$A,[1]Sheet4!$A$6:$G$828,2,0) ->  | G19: =VLOOKUP($A:$A,[1]Sheet4!$A$6:$G$828,4,0) -> 
A20: 37182 | B20: =VLOOKUP($A:$A,[1]Sheet4!$A$6:$G$828,3,0) ->  | C20: =VLOOKUP($A:$A,[1]Sheet4!$A$6:$G$828,2,0) ->  | G20: =VLOOKUP($A:$A,[1]Sheet4!$A$6:$G$828,4,0) -> 
A21: 37183 | B21: =VLOOKUP($A:$A,[1]Sheet4!$A$6:$G$828,3,0) ->  | C21: =VLOOKUP($A:$A,[1]Sheet4!$A$6:$G$828,2,0) ->  | G21: =VLOOKUP($A:$A,[1]Sheet4!$A$6:$G$828,4,0) -> 
A22: 37184 | B22: =VLOOKUP($A:$A,[1]Sheet4!$A$6:$G$828,3,0) ->  | C22: =VLOOKUP($A:$A,[1]Sheet4!$A$6:$G$828,2,0) ->  | G22: =VLOOKUP($A:$A,[1]Sheet4!$A$6:$G$828,4,0) -> 
A23: 37185 | B23: =VLOOKUP($A:$A,[1]Sheet4!$A$6:$G$828,3,0) ->  | C23: =VLOOKUP($A:$A,[1]Sheet4!$A$6:$G$828,2,0) ->  | G23: =VLOOKUP($A:$A,[1]Sheet4!$A$6:$G$828,4,0) -> 
A24: 37186 | B24: =VLOOKUP($A:$A,[1]Sheet4!$A$6:$G$828,3,0) ->  | C24: =VLOOKUP($A:$A,[1]Sheet4!$A$6:$G$828,2,0) ->  | G24: =VLOOKUP($A:$A,[1]Sheet4!$A$6:$G$828,4,0) -> 
A25: 37187 | B25: =VLOOKUP($A:$A,[1]Sheet4!$A$6:$G$828,3,0) ->  | C25: =VLOOKUP($A:$A,[1]Sheet4!$A$6:$G$828,2,0) ->  | G25: =VLOOKUP($A:$A,[1]Sheet4!$A$6:$G$828,4,0) -> 
A26: 37188 | B26: =VLOOKUP($A:$A,[1]Sheet4!$A$6:$G$828,3,0) ->  | C26: =VLOOKUP($A:$A,[1]Sheet4!$A$6:$G$828,2,0) ->  | G26: =VLOOKUP($A:$A,[1]Sheet4!$A$6:$G$828,4,0) -> 
A27: 37189 | B27: =VLOOKUP($A:$A,[1]Sheet4!$A$6:$G$828,3,0) ->  | C27: =VLOOKUP($A:$A,[1]Sheet4!$A$6:$G$828,2,0) ->  | G27: =VLOOKUP($A:$A,[1]Sheet4!$A$6:$G$828,4,0) -> 
A28: 37190 | B28: =VLOOKUP($A:$A,[1]Sheet4!$A$6:$G$828,3,0) ->  | C28: =VLOOKUP($A:$A,[1]Sheet4!$A$6:$G$828,2,0) ->  | G28: =VLOOKUP($A:$A,[1]Sheet4!$A$6:$G$828,4,0) -> 
A29: 37191 | B29: =VLOOKUP($A:$A,[1]Sheet4!$A$6:$G$828,3,0) ->  | C29: =VLOOKUP($A:$A,[1]Sheet4!$A$6:$G$828,2,0) ->  | G29: =VLOOKUP($A:$A,[1]Sheet4!$A$6:$G$828,4,0) -> 
A30: 37192 | B30: =VLOOKUP($A:$A,[1]Sheet4!$A$6:$G$828,3,0) ->  | C30: =VLOOKUP($A:$A,[1]Sheet4!$A$6:$G$828,2,0) ->  | G30: =VLOOKUP($A:$A,[1]Sheet4!$A$6:$G$828,4,0) -> 
A31: 37193 | B31: =VLOOKUP($A:$A,[1]Sheet4!$A$6:$G$828,3,0) ->  | C31: =VLOOKUP($A:$A,[1]Sheet4!$A$6:$G$828,2,0) ->  | G31: =VLOOKUP($A:$A,[1]Sheet4!$A$6:$G$828,4,0) -> 
A32: 37194 | B32: =VLOOKUP($A:$A,[1]Sheet4!$A$6:$G$828,3,0) ->  | C32: =VLOOKUP($A:$A,[1]Sheet4!$A$6:$G$828,2,0) ->  | G32: =VLOOKUP($A:$A,[1]Sheet4!$A$6:$G$828,4,0) -> 
A33: 37195 | B33: =VLOOKUP($A:$A,[1]Sheet4!$A$6:$G$828,3,0) ->  | C33: =VLOOKUP($A:$A,[1]Sheet4!$A$6:$G$828,2,0) ->  | G33: =VLOOKUP($A:$A,[1]Sheet4!$A$6:$G$828,4,0) -> 
A34: 37196 | B34: =VLOOKUP($A:$A,[1]Sheet4!$A$6:$G$828,3,0) ->  | C34: =VLOOKUP($A:$A,[1]Sheet4!$A$6:$G$828,2,0) ->  | G34: =VLOOKUP($A:$A,[1]Sheet4!$A$6:$G$828,4,0) -> 
A35: 37197 | B35: =VLOOKUP($A:$A,[1]Sheet4!$A$6:$G$828,3,0) ->  | C35: =VLOOKUP($A:$A,[1]Sheet4!$A$6:$G$828,2,0) ->  | G35: =VLOOKUP($A:$A,[1]Sheet4!$A$6:$G$828,4,0) -> 
A36: 37198 | B36: =VLOOKUP($A:$A,[1]Sheet4!$A$6:$G$828,3,0) ->  | C36: =VLOOKUP($A:$A,[1]Sheet4!$A$6:$G$828,2,0) ->  | G36: =VLOOKUP($A:$A,[1]Sheet4!$A$6:$G$828,4,0) -> 
A37: 37199 | B37: =VLOOKUP($A:$A,[1]Sheet4!$A$6:$G$828,3,0) ->  | C37: =VLOOKUP($A:$A,[1]Sheet4!$A$6:$G$828,2,0) ->  | G37: =VLOOKUP($A:$A,[1]Sheet4!$A$6:$G$828,4,0) -> 
A38: 37200 | B38: =VLOOKUP($A:$A,[1]Sheet4!$A$6:$G$828,3,0) ->  | C38: =VLOOKUP($A:$A,[1]Sheet4!$A$6:$G$828,2,0) ->  | G38: =VLOOKUP($A:$A,[1]Sheet4!$A$6:$G$828,4,0) -> 
A39: 37201 | B39: =VLOOKUP($A:$A,[1]Sheet4!$A$6:$G$828,3,0) ->  | C39: =VLOOKUP($A:$A,[1]Sheet4!$A$6:$G$828,2,0) ->  | G39: =VLOOKUP($A:$A,[1]Sheet4!$A$6:$G$828,4,0) -> 
A40: 37202 | B40: =VLOOKUP($A:$A,[1]Sheet4!$A$6:$G$828,3,0) ->  | C40: =VLOOKUP($A:$A,[1]Sheet4!$A$6:$G$828,2,0) ->  | G40: =VLOOKUP($A:$A,[1]Sheet4!$A$6:$G$828,4,0) -> 
A41: 37203 | B41: =VLOOKUP($A:$A,[1]Sheet4!$A$6:$G$828,3,0) ->  | C41: =VLOOKUP($A:$A,[1]Sheet4!$A$6:$G$828,2,0) ->  | G41: =VLOOKUP($A:$A,[1]Sheet4!$A$6:$G$828,4,0) -> 
A42: 37204 | B42: =VLOOKUP($A:$A,[1]Sheet4!$A$6:$G$828,3,0) ->  | C42: =VLOOKUP($A:$A,[1]Sheet4!$A$6:$G$828,2,0) ->  | G42: =VLOOKUP($A:$A,[1]Sheet4!$A$6:$G$828,4,0) -> 
A43: 37205 | B43: =VLOOKUP($A:$A,[1]Sheet4!$A$6:$G$828,3,0) ->  | C43: =VLOOKUP($A:$A,[1]Sheet4!$A$6:$G$828,2,0) ->  | G43: =VLOOKUP($A:$A,[1]Sheet4!$A$6:$G$828,4,0) -> 
A44: 37206 | B44: =VLOOKUP($A:$A,[1]Sheet4!$A$6:$G$828,3,0) ->  | C44: =VLOOKUP($A:$A,[1]Sheet4!$A$6:$G$828,2,0) ->  | G44: =VLOOKUP($A:$A,[1]Sheet4!$A$6:$G$828,4,0) -> 
A45: 37207 | B45: =VLOOKUP($A:$A,[1]Sheet4!$A$6:$G$828,3,0) ->  | C45: =VLOOKUP($A:$A,[1]Sheet4!$A$6:$G$828,2,0) ->  | G45: =VLOOKUP($A:$A,[1]Sheet4!$A$6:$G$828,4,0) -> 
A46: 37208 | B46: =VLOOKUP($A:$A,[1]Sheet4!$A$6:$G$828,3,0) ->  | C46: =VLOOKUP($A:$A,[1]Sheet4!$A$6:$G$828,2,0) ->  | G46: =VLOOKUP($A:$A,[1]Sheet4!$A$6:$G$828,4,0) -> 
A47: 37209 | B47: =VLOOKUP($A:$A,[1]Sheet4!$A$6:$G$828,3,0) ->  | C47: =VLOOKUP($A:$A,[1]Sheet4!$A$6:$G$828,2,0) ->  | G47: =VLOOKUP($A:$A,[1]Sheet4!$A$6:$G$828,4,0) -> 
A48: 37210 | B48: =VLOOKUP($A:$A,[1]Sheet4!$A$6:$G$828,3,0) ->  | C48: =VLOOKUP($A:$A,[1]Sheet4!$A$6:$G$828,2,0) ->  | G48: =VLOOKUP($A:$A,[1]Sheet4!$A$6:$G$828,4,0) -> 
A49: 37211 | B49: =VLOOKUP($A:$A,[1]Sheet4!$A$6:$G$828,3,0) ->  | C49: =VLOOKUP($A:$A,[1]Sheet4!$A$6:$G$828,2,0) ->  | G49: =VLOOKUP($A:$A,[1]Sheet4!$A$6:$G$828,4,0) -> 
A50: 37212 | B50: =VLOOKUP($A:$A,[1]Sheet4!$A$6:$G$828,3,0) ->  | C50: =VLOOKUP($A:$A,[1]Sheet4!$A$6:$G$828,2,0) ->  | G50: =VLOOKUP($A:$A,[1]Sheet4!$A$6:$G$828,4,0) -> 
A51: 37213 | B51: =VLOOKUP($A:$A,[1]Sheet4!$A$6:$G$828,3,0) ->  | C51: =VLOOKUP($A:$A,[1]Sheet4!$A$6:$G$828,2,0) ->  | G51: =VLOOKUP($A:$A,[1]Sheet4!$A$6:$G$828,4,0) -> 
A52: 37214 | B52: =VLOOKUP($A:$A,[1]Sheet4!$A$6:$G$828,3,0) ->  | C52: =VLOOKUP($A:$A,[1]Sheet4!$A$6:$G$828,2,0) ->  | G52: =VLOOKUP($A:$A,[1]Sheet4!$A$6:$G$828,4,0) -> 
A53: 37215 | B53: =VLOOKUP($A:$A,[1]Sheet4!$A$6:$G$828,3,0) ->  | C53: =VLOOKUP($A:$A,[1]Sheet4!$A$6:$G$828,2,0) ->  | G53: =VLOOKUP($A:$A,[1]Sheet4!$A$6:$G$828,4,0) -> 
A54: 37216 | B54: =VLOOKUP($A:$A,[1]Sheet4!$A$6:$G$828,3,0) ->  | C54: =VLOOKUP($A:$A,[1]Sheet4!$A$6:$G$828,2,0) ->  | G54: =VLOOKUP($A:$A,[1]Sheet4!$A$6:$G$828,4,0) -> 
A55: 37217 | B55: =VLOOKUP($A:$A,[1]Sheet4!$A$6:$G$828,3,0) ->  | C55: =VLOOKUP($A:$A,[1]Sheet4!$A$6:$G$828,2,0) ->  | G55: =VLOOKUP($A:$A,[1]Sheet4!$A$6:$G$828,4,0) -> 
A56: 37218 | B56: =VLOOKUP($A:$A,[1]Sheet4!$A$6:$G$828,3,0) ->  | C56: =VLOOKUP($A:$A,[1]Sheet4!$A$6:$G$828,2,0) ->  | G56: =VLOOKUP($A:$A,[1]Sheet4!$A$6:$G$828,4,0) -> 
A57: 37219 | B57: =VLOOKUP($A:$A,[1]Sheet4!$A$6:$G$828,3,0) ->  | C57: =VLOOKUP($A:$A,[1]Sheet4!$A$6:$G$828,2,0) ->  | G57: =VLOOKUP($A:$A,[1]Sheet4!$A$6:$G$828,4,0) -> 
A58: 37220 | B58: =VLOOKUP($A:$A,[1]Sheet4!$A$6:$G$828,3,0) ->  | C58: =VLOOKUP($A:$A,[1]Sheet4!$A$6:$G$828,2,0) ->  | G58: =VLOOKUP($A:$A,[1]Sheet4!$A$6:$G$828,4,0) -> 
A59: 37221 | B59: =VLOOKUP($A:$A,[1]Sheet4!$A$6:$G$828,3,0) ->  | C59: =VLOOKUP($A:$A,[1]Sheet4!$A$6:$G$828,2,0) ->  | G59: =VLOOKUP($A:$A,[1]Sheet4!$A$6:$G$828,4,0) -> 
A60: 37222 | B60: =VLOOKUP($A:$A,[1]Sheet4!$A$6:$G$828,3,0) ->  | C60: =VLOOKUP($A:$A,[1]Sheet4!$A$6:$G$828,2,0) ->  | G60: =VLOOKUP($A:$A,[1]Sheet4!$A$6:$G$828,4,0) -> 
A61: 37223 | B61: =VLOOKUP($A:$A,[1]Sheet4!$A$6:$G$828,3,0) ->  | C61: =VLOOKUP($A:$A,[1]Sheet4!$A$6:$G$828,2,0) ->  | G61: =VLOOKUP($A:$A,[1]Sheet4!$A$6:$G$828,4,0) -> 
A62: 37224 | B62: =VLOOKUP($A:$A,[1]Sheet4!$A$6:$G$828,3,0) ->  | C62: =VLOOKUP($A:$A,[1]Sheet4!$A$6:$G$828,2,0) ->  | G62: =VLOOKUP($A:$A,[1]Sheet4!$A$6:$G$828,4,0) -> 
A63: 37225 | B63: =VLOOKUP($A:$A,[1]Sheet4!$A$6:$G$828,3,0) ->  | C63: =VLOOKUP($A:$A,[1]Sheet4!$A$6:$G$828,2,0) ->  | G63: =VLOOKUP($A:$A,[1]Sheet4!$A$6:$G$828,4,0) -> 
A64: 37226 | B64: =VLOOKUP($A:$A,[1]Sheet4!$A$6:$G$828,3,0) ->  | C64: =VLOOKUP($A:$A,[1]Sheet4!$A$6:$G$828,2,0) ->  | G64: =VLOOKUP($A:$A,[1]Sheet4!$A$6:$G$828,4,0) -> 
A65: 37227 | B65: =VLOOKUP($A:$A,[1]Sheet4!$A$6:$G$828,3,0) ->  | C65: =VLOOKUP($A:$A,[1]Sheet4!$A$6:$G$828,2,0) ->  | G65: =VLOOKUP($A:$A,[1]Sheet4!$A$6:$G$828,4,0) -> 
A66: 37228 | B66: =VLOOKUP($A:$A,[1]Sheet4!$A$6:$G$828,3,0) ->  | C66: =VLOOKUP($A:$A,[1]Sheet4!$A$6:$G$828,2,0) ->  | G66: =VLOOKUP($A:$A,[1]Sheet4!$A$6:$G$828,4,0) -> 
A67: 37229 | B67: =VLOOKUP($A:$A,[1]Sheet4!$A$6:$G$828,3,0) ->  | C67: =VLOOKUP($A:$A,[1]Sheet4!$A$6:$G$828,2,0) ->  | G67: =VLOOKUP($A:$A,[1]Sheet4!$A$6:$G$828,4,0) -> 
A68: =A67+1 -> 37230 | B68: =VLOOKUP($A:$A,[1]Sheet4!$A$6:$G$828,3,0) ->  | C68: =VLOOKUP($A:$A,[1]Sheet4!$A$6:$G$828,2,0) ->  | G68: =VLOOKUP($A:$A,[1]Sheet4!$A$6:$G$828,4,0) -> 
A69: 37231 | B69: =VLOOKUP($A:$A,[1]Sheet4!$A$6:$G$828,3,0) ->  | C69: =VLOOKUP($A:$A,[1]Sheet4!$A$6:$G$828,2,0) ->  | G69: =VLOOKUP($A:$A,[1]Sheet4!$A$6:$G$828,4,0) -> 
A70: 37232 | B70: =VLOOKUP($A:$A,[1]Sheet4!$A$6:$G$828,3,0) ->  | C70: =VLOOKUP($A:$A,[1]Sheet4!$A$6:$G$828,2,0) ->  | G70: =VLOOKUP($A:$A,[1]Sheet4!$A$6:$G$828,4,0) -> 
A71: 37233 | B71: =VLOOKUP($A:$A,[1]Sheet4!$A$6:$G$828,3,0) ->  | C71: =VLOOKUP($A:$A,[1]Sheet4!$A$6:$G$828,2,0) ->  | G71: =VLOOKUP($A:$A,[1]Sheet4!$A$6:$G$828,4,0) -> 
A72: 37234 | B72: =VLOOKUP($A:$A,[1]Sheet4!$A$6:$G$828,3,0) ->  | C72: =VLOOKUP($A:$A,[1]Sheet4!$A$6:$G$828,2,0) ->  | G72: =VLOOKUP($A:$A,[1]Sheet4!$A$6:$G$828,4,0) -> 
A73: 37235 | B73: =VLOOKUP($A:$A,[1]Sheet4!$A$6:$G$828,3,0) ->  | C73: =VLOOKUP($A:$A,[1]Sheet4!$A$6:$G$828,2,0) ->  | G73: =VLOOKUP($A:$A,[1]Sheet4!$A$6:$G$828,4,0) -> 
A74: 37236 | B74: =VLOOKUP($A:$A,[1]Sheet4!$A$6:$G$828,3,0) ->  | C74: =VLOOKUP($A:$A,[1]Sheet4!$A$6:$G$828,2,0) ->  | G74: =VLOOKUP($A:$A,[1]Sheet4!$A$6:$G$828,4,0) -> 
A75: 37237 | B75: =VLOOKUP($A:$A,[1]Sheet4!$A$6:$G$828,3,0) ->  | C75: =VLOOKUP($A:$A,[1]Sheet4!$A$6:$G$828,2,0) ->  | G75: =VLOOKUP($A:$A,[1]Sheet4!$A$6:$G$828,4,0) -> 
A76: 37238 | B76: =VLOOKUP($A:$A,[1]Sheet4!$A$6:$G$828,3,0) ->  | C76: =VLOOKUP($A:$A,[1]Sheet4!$A$6:$G$828,2,0) ->  | G76: =VLOOKUP($A:$A,[1]Sheet4!$A$6:$G$828,4,0) -> 
A77: 37239 | B77: =VLOOKUP($A:$A,[1]Sheet4!$A$6:$G$828,3,0) ->  | C77: =VLOOKUP($A:$A,[1]Sheet4!$A$6:$G$828,2,0) ->  | G77: =VLOOKUP($A:$A,[1]Sheet4!$A$6:$G$828,4,0) -> 
A78: 37240 | B78: =VLOOKUP($A:$A,[1]Sheet4!$A$6:$G$828,3,0) ->  | C78: =VLOOKUP($A:$A,[1]Sheet4!$A$6:$G$828,2,0) ->  | G78: =VLOOKUP($A:$A,[1]Sheet4!$A$6:$G$828,4,0) -> 
A79: 37241 | B79: =VLOOKUP($A:$A,[1]Sheet4!$A$6:$G$828,3,0) ->  | C79: =VLOOKUP($A:$A,[1]Sheet4!$A$6:$G$828,2,0) ->  | G79: =VLOOKUP($A:$A,[1]Sheet4!$A$6:$G$828,4,0) -> 
A80: 37242 | B80: =VLOOKUP($A:$A,[1]Sheet4!$A$6:$G$828,3,0) ->  | C80: =VLOOKUP($A:$A,[1]Sheet4!$A$6:$G$828,2,0) ->  | G80: =VLOOKUP($A:$A,[1]Sheet4!$A$6:$G$828,4,0) -> 
A81: 37243 | B81: =VLOOKUP($A:$A,[1]Sheet4!$A$6:$G$828,3,0) ->  | C81: =VLOOKUP($A:$A,[1]Sheet4!$A$6:$G$828,2,0) ->  | G81: =VLOOKUP($A:$A,[1]Sheet4!$A$6:$G$828,4,0) -> 
A82: 37244 | B82: =VLOOKUP($A:$A,[1]Sheet4!$A$6:$G$828,3,0) ->  | C82: =VLOOKUP($A:$A,[1]Sheet4!$A$6:$G$828,2,0) ->  | G82: =VLOOKUP($A:$A,[1]Sheet4!$A$6:$G$828,4,0) -> 
A83: 37245 | B83: =VLOOKUP($A:$A,[1]Sheet4!$A$6:$G$828,3,0) ->  | C83: =VLOOKUP($A:$A,[1]Sheet4!$A$6:$G$828,2,0) ->  | G83: =VLOOKUP($A:$A,[1]Sheet4!$A$6:$G$828,4,0) -> 
A84: 37246 | B84: =VLOOKUP($A:$A,[1]Sheet4!$A$6:$G$828,3,0) ->  | C84: =VLOOKUP($A:$A,[1]Sheet4!$A$6:$G$828,2,0) ->  | G84: =VLOOKUP($A:$A,[1]Sheet4!$A$6:$G$828,4,0) -> 
A85: 37247 | B85: =VLOOKUP($A:$A,[1]Sheet4!$A$6:$G$828,3,0) ->  | C85: =VLOOKUP($A:$A,[1]Sheet4!$A$6:$G$828,2,0) ->  | G85: =VLOOKUP($A:$A,[1]Sheet4!$A$6:$G$828,4,0) -> 
A86: 37248 | B86: =VLOOKUP($A:$A,[1]Sheet4!$A$6:$G$828,3,0) ->  | C86: =VLOOKUP($A:$A,[1]Sheet4!$A$6:$G$828,2,0) ->  | G86: =VLOOKUP($A:$A,[1]Sheet4!$A$6:$G$828,4,0) -> 
A87: 37249 | B87: =VLOOKUP($A:$A,[1]Sheet4!$A$6:$G$828,3,0) ->  | C87: =VLOOKUP($A:$A,[1]Sheet4!$A$6:$G$828,2,0) ->  | G87: =VLOOKUP($A:$A,[1]Sheet4!$A$6:$G$828,4,0) -> 
A88: 37250 | B88: =VLOOKUP($A:$A,[1]Sheet4!$A$6:$G$828,3,0) ->  | C88: =VLOOKUP($A:$A,[1]Sheet4!$A$6:$G$828,2,0) ->  | G88: =VLOOKUP($A:$A,[1]Sheet4!$A$6:$G$828,4,0) -> 
A89: 37251 | B89: =VLOOKUP($A:$A,[1]Sheet4!$A$6:$G$828,3,0) ->  | C89: =VLOOKUP($A:$A,[1]Sheet4!$A$6:$G$828,2,0) ->  | G89: =VLOOKUP($A:$A,[1]Sheet4!$A$6:$G$828,4,0) -> 
A90: 37252 | B90: =VLOOKUP($A:$A,[1]Sheet4!$A$6:$G$828,3,0) ->  | C90: =VLOOKUP($A:$A,[1]Sheet4!$A$6:$G$828,2,0) ->  | G90: =VLOOKUP($A:$A,[1]Sheet4!$A$6:$G$828,4,0) -> 
A91: 37253 | B91: =VLOOKUP($A:$A,[1]Sheet4!$A$6:$G$828,3,0) ->  | C91: =VLOOKUP($A:$A,[1]Sheet4!$A$6:$G$828,2,0) ->  | G91: =VLOOKUP($A:$A,[1]Sheet4!$A$6:$G$828,4,0) -> 
A92: 37254 | B92: =VLOOKUP($A:$A,[1]Sheet4!$A$6:$G$828,3,0) ->  | C92: =VLOOKUP($A:$A,[1]Sheet4!$A$6:$G$828,2,0) ->  | G92: =VLOOKUP($A:$A,[1]Sheet4!$A$6:$G$828,4,0) -> 
A93: 37255 | B93: =VLOOKUP($A:$A,[1]Sheet4!$A$6:$G$828,3,0) ->  | C93: =VLOOKUP($A:$A,[1]Sheet4!$A$6:$G$828,2,0) ->  | G93: =VLOOKUP($A:$A,[1]Sheet4!$A$6:$G$828,4,0) -> 
A94: 37256 | B94: =VLOOKUP($A:$A,[1]Sheet4!$A$6:$G$828,3,0) ->  | C94: =VLOOKUP($A:$A,[1]Sheet4!$A$6:$G$828,2,0) ->  | G94: =VLOOKUP($A:$A,[1]Sheet4!$A$6:$G$828,4,0) -> 
A95: 37257 | B95: =VLOOKUP($A:$A,[1]Sheet4!$A$6:$G$828,3,0) ->  | C95: =VLOOKUP($A:$A,[1]Sheet4!$A$6:$G$828,2,0) ->  | G95: =VLOOKUP($A:$A,[1]Sheet4!$A$6:$G$828,4,0) -> 
A96: 37258 | B96: =VLOOKUP($A:$A,[1]Sheet4!$A$6:$G$828,3,0) ->  | C96: =VLOOKUP($A:$A,[1]Sheet4!$A$6:$G$828,2,0) ->  | G96: =VLOOKUP($A:$A,[1]Sheet4!$A$6:$G$828,4,0) -> 
A97: 37259 | B97: =VLOOKUP($A:$A,[1]Sheet4!$A$6:$G$828,3,0) ->  | C97: =VLOOKUP($A:$A,[1]Sheet4!$A$6:$G$828,2,0) ->  | G97: =VLOOKUP($A:$A,[1]Sheet4!$A$6:$G$828,4,0) -> 
A98: 37260 | B98: =VLOOKUP($A:$A,[1]Sheet4!$A$6:$G$828,3,0) ->  | C98: =VLOOKUP($A:$A,[1]Sheet4!$A$6:$G$828,2,0) ->  | G98: =VLOOKUP($A:$A,[1]Sheet4!$A$6:$G$828,4,0) -> 
A99: 37261 | B99: =VLOOKUP($A:$A,[1]Sheet4!$A$6:$G$828,3,0) ->  | C99: =VLOOKUP($A:$A,[1]Sheet4!$A$6:$G$828,2,0) ->  | G99: =VLOOKUP($A:$A,[1]Sheet4!$A$6:$G$828,4,0) -> 
A100: 37262 | B100: =VLOOKUP($A:$A,[1]Sheet4!$A$6:$G$828,3,0) ->  | C100: =VLOOKUP($A:$A,[1]Sheet4!$A$6:$G$828,2,0) ->  | G100: =VLOOKUP($A:$A,[1]Sheet4!$A$6:$G$828,4,0) -> 
A101: 37263 | B101: =VLOOKUP($A:$A,[1]Sheet4!$A$6:$G$828,3,0) ->  | C101: =VLOOKUP($A:$A,[1]Sheet4!$A$6:$G$828,2,0) ->  | G101: =VLOOKUP($A:$A,[1]Sheet4!$A$6:$G$828,4,0) -> 
A102: 37264 | B102: =VLOOKUP($A:$A,[1]Sheet4!$A$6:$G$828,3,0) ->  | C102: =VLOOKUP($A:$A,[1]Sheet4!$A$6:$G$828,2,0) ->  | G102: =VLOOKUP($A:$A,[1]Sheet4!$A$6:$G$828,4,0) -> 
A103: 37265 | B103: =VLOOKUP($A:$A,[1]Sheet4!$A$6:$G$828,3,0) ->  | C103: =VLOOKUP($A:$A,[1]Sheet4!$A$6:$G$828,2,0) ->  | G103: =VLOOKUP($A:$A,[1]Sheet4!$A$6:$G$828,4,0) -> 
A104: 37266 | B104: =VLOOKUP($A:$A,[1]Sheet4!$A$6:$G$828,3,0) ->  | C104: =VLOOKUP($A:$A,[1]Sheet4!$A$6:$G$828,2,0) ->  | G104: =VLOOKUP($A:$A,[1]Sheet4!$A$6:$G$828,4,0) -> 
A105: 37267 | B105: =VLOOKUP($A:$A,[1]Sheet4!$A$6:$G$828,3,0) ->  | C105: =VLOOKUP($A:$A,[1]Sheet4!$A$6:$G$828,2,0) ->  | G105: =VLOOKUP($A:$A,[1]Sheet4!$A$6:$G$828,4,0) -> 
A106: 37268 | B106: =VLOOKUP($A:$A,[1]Sheet4!$A$6:$G$828,3,0) ->  | C106: =VLOOKUP($A:$A,[1]Sheet4!$A$6:$G$828,2,0) ->  | G106: =VLOOKUP($A:$A,[1]Sheet4!$A$6:$G$828,4,0) -> 
A107: 37269 | B107: =VLOOKUP($A:$A,[1]Sheet4!$A$6:$G$828,3,0) ->  | C107: =VLOOKUP($A:$A,[1]Sheet4!$A$6:$G$828,2,0) ->  | G107: =VLOOKUP($A:$A,[1]Sheet4!$A$6:$G$828,4,0) -> 
A108: 37270 | B108: =VLOOKUP($A:$A,[1]Sheet4!$A$6:$G$828,3,0) ->  | C108: =VLOOKUP($A:$A,[1]Sheet4!$A$6:$G$828,2,0) ->  | G108: =VLOOKUP($A:$A,[1]Sheet4!$A$6:$G$828,4,0) -> 
A109: 37271 | B109: =VLOOKUP($A:$A,[1]Sheet4!$A$6:$G$828,3,0) ->  | C109: =VLOOKUP($A:$A,[1]Sheet4!$A$6:$G$828,2,0) ->  | G109: =VLOOKUP($A:$A,[1]Sheet4!$A$6:$G$828,4,0) -> 
A110: 37272 | B110: =VLOOKUP($A:$A,[1]Sheet4!$A$6:$G$828,3,0) ->  | C110: =VLOOKUP($A:$A,[1]Sheet4!$A$6:$G$828,2,0) ->  | G110: =VLOOKUP($A:$A,[1]Sheet4!$A$6:$G$828,4,0) -> 
A111: 37273 | B111: =VLOOKUP($A:$A,[1]Sheet4!$A$6:$G$828,3,0) ->  | C111: =VLOOKUP($A:$A,[1]Sheet4!$A$6:$G$828,2,0) ->  | G111: =VLOOKUP($A:$A,[1]Sheet4!$A$6:$G$828,4,0) -> 
A112: 37274 | B112: =VLOOKUP($A:$A,[1]Sheet4!$A$6:$G$828,3,0) ->  | C112: =VLOOKUP($A:$A,[1]Sheet4!$A$6:$G$828,2,0) ->  | G112: =VLOOKUP($A:$A,[1]Sheet4!$A$6:$G$828,4,0) -> 
A113: 37275 | B113: =VLOOKUP($A:$A,[1]Sheet4!$A$6:$G$828,3,0) ->  | C113: =VLOOKUP($A:$A,[1]Sheet4!$A$6:$G$828,2,0) ->  | G113: =VLOOKUP($A:$A,[1]Sheet4!$A$6:$G$828,4,0) -> 
A114: 37276 | B114: =VLOOKUP($A:$A,[1]Sheet4!$A$6:$G$828,3,0) ->  | C114: =VLOOKUP($A:$A,[1]Sheet4!$A$6:$G$828,2,0) ->  | G114: =VLOOKUP($A:$A,[1]Sheet4!$A$6:$G$828,4,0) -> 
A115: 37277 | B115: =VLOOKUP($A:$A,[1]Sheet4!$A$6:$G$828,3,0) ->  | C115: =VLOOKUP($A:$A,[1]Sheet4!$A$6:$G$828,2,0) ->  | G115: =VLOOKUP($A:$A,[1]Sheet4!$A$6:$G$828,4,0) -> 
A116: 37278 | B116: =VLOOKUP($A:$A,[1]Sheet4!$A$6:$G$828,3,0) ->  | C116: =VLOOKUP($A:$A,[1]Sheet4!$A$6:$G$828,2,0) ->  | G116: =VLOOKUP($A:$A,[1]Sheet4!$A$6:$G$828,4,0) -> 
A117: 37279 | B117: =VLOOKUP($A:$A,[1]Sheet4!$A$6:$G$828,3,0) ->  | C117: =VLOOKUP($A:$A,[1]Sheet4!$A$6:$G$828,2,0) ->  | G117: =VLOOKUP($A:$A,[1]Sheet4!$A$6:$G$828,4,0) -> 
A118: 37280 | B118: =VLOOKUP($A:$A,[1]Sheet4!$A$6:$G$828,3,0) ->  | C118: =VLOOKUP($A:$A,[1]Sheet4!$A$6:$G$828,2,0) ->  | G118: =VLOOKUP($A:$A,[1]Sheet4!$A$6:$G$828,4,0) -> 
A119: 37281 | B119: =VLOOKUP($A:$A,[1]Sheet4!$A$6:$G$828,3,0) ->  | C119: =VLOOKUP($A:$A,[1]Sheet4!$A$6:$G$828,2,0) ->  | G119: =VLOOKUP($A:$A,[1]Sheet4!$A$6:$G$828,4,0) -> 
A120: 37282 | B120: =VLOOKUP($A:$A,[1]Sheet4!$A$6:$G$828,3,0) ->  | C120: =VLOOKUP($A:$A,[1]Sheet4!$A$6:$G$828,2,0) ->  | G120: =VLOOKUP($A:$A,[1]Sheet4!$A$6:$G$828,4,0) -> 
A121: 37283 | B121: =VLOOKUP($A:$A,[1]Sheet4!$A$6:$G$828,3,0) ->  | C121: =VLOOKUP($A:$A,[1]Sheet4!$A$6:$G$828,2,0) ->  | G121: =VLOOKUP($A:$A,[1]Sheet4!$A$6:$G$828,4,0) -> 
A122: 37284 | B122: =VLOOKUP($A:$A,[1]Sheet4!$A$6:$G$828,3,0) ->  | C122: =VLOOKUP($A:$A,[1]Sheet4!$A$6:$G$828,2,0) ->  | G122: =VLOOKUP($A:$A,[1]Sheet4!$A$6:$G$828,4,0) -> 
A123: 37285 | B123: =VLOOKUP($A:$A,[1]Sheet4!$A$6:$G$828,3,0) ->  | C123: =VLOOKUP($A:$A,[1]Sheet4!$A$6:$G$828,2,0) ->  | G123: =VLOOKUP($A:$A,[1]Sheet4!$A$6:$G$828,4,0) -> 
A124: 37286 | B124: =VLOOKUP($A:$A,[1]Sheet4!$A$6:$G$828,3,0) ->  | C124: =VLOOKUP($A:$A,[1]Sheet4!$A$6:$G$828,2,0) ->  | G124: =VLOOKUP($A:$A,[1]Sheet4!$A$6:$G$828,4,0) -> 
A125: 37287 | B125: =VLOOKUP($A:$A,[1]Sheet4!$A$6:$G$828,3,0) ->  | C125: =VLOOKUP($A:$A,[1]Sheet4!$A$6:$G$828,2,0) ->  | G125: =VLOOKUP($A:$A,[1]Sheet4!$A$6:$G$828,4,0) -> 
A126: 37288 | B126: =VLOOKUP($A:$A,[1]Sheet4!$A$6:$G$828,3,0) ->  | C126: =VLOOKUP($A:$A,[1]Sheet4!$A$6:$G$828,2,0) ->  | G126: =VLOOKUP($A:$A,[1]Sheet4!$A$6:$G$828,4,0) -> 
A127: 37289 | B127: =VLOOKUP($A:$A,[1]Sheet4!$A$6:$G$828,3,0) ->  | C127: =VLOOKUP($A:$A,[1]Sheet4!$A$6:$G$828,2,0) ->  | G127: =VLOOKUP($A:$A,[1]Sheet4!$A$6:$G$828,4,0) -> 
A128: 37290 | B128: =VLOOKUP($A:$A,[1]Sheet4!$A$6:$G$828,3,0) ->  | C128: =VLOOKUP($A:$A,[1]Sheet4!$A$6:$G$828,2,0) ->  | G128: =VLOOKUP($A:$A,[1]Sheet4!$A$6:$G$828,4,0) -> 
A129: 37291 | B129: =VLOOKUP($A:$A,[1]Sheet4!$A$6:$G$828,3,0) ->  | C129: =VLOOKUP($A:$A,[1]Sheet4!$A$6:$G$828,2,0) ->  | G129: =VLOOKUP($A:$A,[1]Sheet4!$A$6:$G$828,4,0) -> 
A130: 37292 | B130: =VLOOKUP($A:$A,[1]Sheet4!$A$6:$G$828,3,0) ->  | C130: =VLOOKUP($A:$A,[1]Sheet4!$A$6:$G$828,2,0) ->  | G130: =VLOOKUP($A:$A,[1]Sheet4!$A$6:$G$828,4,0) -> 
A131: 37293 | B131: =VLOOKUP($A:$A,[1]Sheet4!$A$6:$G$828,3,0) ->  | C131: =VLOOKUP($A:$A,[1]Sheet4!$A$6:$G$828,2,0) ->  | G131: =VLOOKUP($A:$A,[1]Sheet4!$A$6:$G$828,4,0) -> 
A132: =A131+1 -> 37294 | B132: =VLOOKUP($A:$A,[1]Sheet4!$A$6:$G$828,3,0) ->  | C132: =VLOOKUP($A:$A,[1]Sheet4!$A$6:$G$828,2,0) ->  | G132: =VLOOKUP($A:$A,[1]Sheet4!$A$6:$G$828,4,0) -> 
A133: 37295 | B133: =VLOOKUP($A:$A,[1]Sheet4!$A$6:$G$828,3,0) ->  | C133: =VLOOKUP($A:$A,[1]Sheet4!$A$6:$G$828,2,0) ->  | G133: =VLOOKUP($A:$A,[1]Sheet4!$A$6:$G$828,4,0) -> 
A134: 37296 | B134: =VLOOKUP($A:$A,[1]Sheet4!$A$6:$G$828,3,0) ->  | C134: =VLOOKUP($A:$A,[1]Sheet4!$A$6:$G$828,2,0) ->  | G134: =VLOOKUP($A:$A,[1]Sheet4!$A$6:$G$828,4,0) -> 
A135: 37297 | B135: =VLOOKUP($A:$A,[1]Sheet4!$A$6:$G$828,3,0) ->  | C135: =VLOOKUP($A:$A,[1]Sheet4!$A$6:$G$828,2,0) ->  | G135: =VLOOKUP($A:$A,[1]Sheet4!$A$6:$G$828,4,0) -> 
A136: 37298 | B136: =VLOOKUP($A:$A,[1]Sheet4!$A$6:$G$828,3,0) ->  | C136: =VLOOKUP($A:$A,[1]Sheet4!$A$6:$G$828,2,0) ->  | G136: =VLOOKUP($A:$A,[1]Sheet4!$A$6:$G$828,4,0) -> 
A137: 37299 | B137: =VLOOKUP($A:$A,[1]Sheet4!$A$6:$G$828,3,0) ->  | C137: =VLOOKUP($A:$A,[1]Sheet4!$A$6:$G$828,2,0) ->  | G137: =VLOOKUP($A:$A,[1]Sheet4!$A$6:$G$828,4,0) -> 
A138: 37300 | B138: =VLOOKUP($A:$A,[1]Sheet4!$A$6:$G$828,3,0) ->  | C138: =VLOOKUP($A:$A,[1]Sheet4!$A$6:$G$828,2,0) ->  | G138: =VLOOKUP($A:$A,[1]Sheet4!$A$6:$G$828,4,0) -> 
A139: 37301 | B139: =VLOOKUP($A:$A,[1]Sheet4!$A$6:$G$828,3,0) ->  | C139: =VLOOKUP($A:$A,[1]Sheet4!$A$6:$G$828,2,0) ->  | G139: =VLOOKUP($A:$A,[1]Sheet4!$A$6:$G$828,4,0) -> 
A140: 37302 | B140: =VLOOKUP($A:$A,[1]Sheet4!$A$6:$G$828,3,0) ->  | C140: =VLOOKUP($A:$A,[1]Sheet4!$A$6:$G$828,2,0) ->  | G140: =VLOOKUP($A:$A,[1]Sheet4!$A$6:$G$828,4,0) -> 
A141: 37303 | B141: =VLOOKUP($A:$A,[1]Sheet4!$A$6:$G$828,3,0) ->  | C141: =VLOOKUP($A:$A,[1]Sheet4!$A$6:$G$828,2,0) ->  | G141: =VLOOKUP($A:$A,[1]Sheet4!$A$6:$G$828,4,0) -> 
A142: 37304 | B142: =VLOOKUP($A:$A,[1]Sheet4!$A$6:$G$828,3,0) ->  | C142: =VLOOKUP($A:$A,[1]Sheet4!$A$6:$G$828,2,0) ->  | G142: =VLOOKUP($A:$A,[1]Sheet4!$A$6:$G$828,4,0) -> 
A143: 37305 | B143: =VLOOKUP($A:$A,[1]Sheet4!$A$6:$G$828,3,0) ->  | C143: =VLOOKUP($A:$A,[1]Sheet4!$A$6:$G$828,2,0) ->  | G143: =VLOOKUP($A:$A,[1]Sheet4!$A$6:$G$828,4,0) -> 
A144: 37306 | B144: =VLOOKUP($A:$A,[1]Sheet4!$A$6:$G$828,3,0) ->  | C144: =VLOOKUP($A:$A,[1]Sheet4!$A$6:$G$828,2,0) ->  | G144: =VLOOKUP($A:$A,[1]Sheet4!$A$6:$G$828,4,0) -> 
A145: 37307 | B145: =VLOOKUP($A:$A,[1]Sheet4!$A$6:$G$828,3,0) ->  | C145: =VLOOKUP($A:$A,[1]Sheet4!$A$6:$G$828,2,0) ->  | G145: =VLOOKUP($A:$A,[1]Sheet4!$A$6:$G$828,4,0) -> 
A146: 37308 | B146: =VLOOKUP($A:$A,[1]Sheet4!$A$6:$G$828,3,0) ->  | C146: =VLOOKUP($A:$A,[1]Sheet4!$A$6:$G$828,2,0) ->  | G146: =VLOOKUP($A:$A,[1]Sheet4!$A$6:$G$828,4,0) -> 
A147: 37309 | B147: =VLOOKUP($A:$A,[1]Sheet4!$A$6:$G$828,3,0) ->  | C147: =VLOOKUP($A:$A,[1]Sheet4!$A$6:$G$828,2,0) ->  | G147: =VLOOKUP($A:$A,[1]Sheet4!$A$6:$G$828,4,0) -> 
A148: 37310 | B148: =VLOOKUP($A:$A,[1]Sheet4!$A$6:$G$828,3,0) ->  | C148: =VLOOKUP($A:$A,[1]Sheet4!$A$6:$G$828,2,0) ->  | G148: =VLOOKUP($A:$A,[1]Sheet4!$A$6:$G$828,4,0) -> 
A149: 37311 | B149: =VLOOKUP($A:$A,[1]Sheet4!$A$6:$G$828,3,0) ->  | C149: =VLOOKUP($A:$A,[1]Sheet4!$A$6:$G$828,2,0) ->  | G149: =VLOOKUP($A:$A,[1]Sheet4!$A$6:$G$828,4,0) -> 
A150: 37312 | B150: =VLOOKUP($A:$A,[1]Sheet4!$A$6:$G$828,3,0) ->  | C150: =VLOOKUP($A:$A,[1]Sheet4!$A$6:$G$828,2,0) ->  | G150: =VLOOKUP($A:$A,[1]Sheet4!$A$6:$G$828,4,0) -> 
A151: 37313 | B151: =VLOOKUP($A:$A,[1]Sheet4!$A$6:$G$828,3,0) ->  | C151: =VLOOKUP($A:$A,[1]Sheet4!$A$6:$G$828,2,0) ->  | G151: =VLOOKUP($A:$A,[1]Sheet4!$A$6:$G$828,4,0) -> 
A152: 37314 | B152: =VLOOKUP($A:$A,[1]Sheet4!$A$6:$G$828,3,0) ->  | C152: =VLOOKUP($A:$A,[1]Sheet4!$A$6:$G$828,2,0) ->  | G152: =VLOOKUP($A:$A,[1]Sheet4!$A$6:$G$828,4,0) -> 
A153: 37315 | B153: =VLOOKUP($A:$A,[1]Sheet4!$A$6:$G$828,3,0) ->  | C153: =VLOOKUP($A:$A,[1]Sheet4!$A$6:$G$828,2,0) ->  | G153: =VLOOKUP($A:$A,[1]Sheet4!$A$6:$G$828,4,0) -> 
A154: 37316 | B154: =VLOOKUP($A:$A,[1]Sheet4!$A$6:$G$828,3,0) ->  | C154: =VLOOKUP($A:$A,[1]Sheet4!$A$6:$G$828,2,0) ->  | G154: =VLOOKUP($A:$A,[1]Sheet4!$A$6:$G$828,4,0) -> 
A155: 37317 | B155: =VLOOKUP($A:$A,[1]Sheet4!$A$6:$G$828,3,0) ->  | C155: =VLOOKUP($A:$A,[1]Sheet4!$A$6:$G$828,2,0) ->  | G155: =VLOOKUP($A:$A,[1]Sheet4!$A$6:$G$828,4,0) -> 
A156: 37318 | B156: =VLOOKUP($A:$A,[1]Sheet4!$A$6:$G$828,3,0) ->  | C156: =VLOOKUP($A:$A,[1]Sheet4!$A$6:$G$828,2,0) ->  | G156: =VLOOKUP($A:$A,[1]Sheet4!$A$6:$G$828,4,0) -> 
A157: 37319 | B157: =VLOOKUP($A:$A,[1]Sheet4!$A$6:$G$828,3,0) ->  | C157: =VLOOKUP($A:$A,[1]Sheet4!$A$6:$G$828,2,0) ->  | G157: =VLOOKUP($A:$A,[1]Sheet4!$A$6:$G$828,4,0) -> 
A158: 37320 | B158: =VLOOKUP($A:$A,[1]Sheet4!$A$6:$G$828,3,0) ->  | C158: =VLOOKUP($A:$A,[1]Sheet4!$A$6:$G$828,2,0) ->  | G158: =VLOOKUP($A:$A,[1]Sheet4!$A$6:$G$828,4,0) -> 
A159: 37321 | B159: =VLOOKUP($A:$A,[1]Sheet4!$A$6:$G$828,3,0) ->  | C159: =VLOOKUP($A:$A,[1]Sheet4!$A$6:$G$828,2,0) ->  | G159: =VLOOKUP($A:$A,[1]Sheet4!$A$6:$G$828,4,0) -> 
A160: 37322 | B160: =VLOOKUP($A:$A,[1]Sheet4!$A$6:$G$828,3,0) ->  | C160: =VLOOKUP($A:$A,[1]Sheet4!$A$6:$G$828,2,0) ->  | G160: =VLOOKUP($A:$A,[1]Sheet4!$A$6:$G$828,4,0) -> 
A161: 37323 | B161: =VLOOKUP($A:$A,[1]Sheet4!$A$6:$G$828,3,0) ->  | C161: =VLOOKUP($A:$A,[1]Sheet4!$A$6:$G$828,2,0) ->  | G161: =VLOOKUP($A:$A,[1]Sheet4!$A$6:$G$828,4,0) -> 
A162: 37324 | B162: =VLOOKUP($A:$A,[1]Sheet4!$A$6:$G$828,3,0) ->  | C162: =VLOOKUP($A:$A,[1]Sheet4!$A$6:$G$828,2,0) ->  | G162: =VLOOKUP($A:$A,[1]Sheet4!$A$6:$G$828,4,0) -> 
A163: 37325 | B163: =VLOOKUP($A:$A,[1]Sheet4!$A$6:$G$828,3,0) ->  | C163: =VLOOKUP($A:$A,[1]Sheet4!$A$6:$G$828,2,0) ->  | G163: =VLOOKUP($A:$A,[1]Sheet4!$A$6:$G$828,4,0) -> 
A164: 37326 | B164: =VLOOKUP($A:$A,[1]Sheet4!$A$6:$G$828,3,0) ->  | C164: =VLOOKUP($A:$A,[1]Sheet4!$A$6:$G$828,2,0) ->  | G164: =VLOOKUP($A:$A,[1]Sheet4!$A$6:$G$828,4,0) -> 
A165: 37327 | B165: =VLOOKUP($A:$A,[1]Sheet4!$A$6:$G$828,3,0) ->  | C165: =VLOOKUP($A:$A,[1]Sheet4!$A$6:$G$828,2,0) ->  | G165: =VLOOKUP($A:$A,[1]Sheet4!$A$6:$G$828,4,0) -> 
A166: 37328 | B166: =VLOOKUP($A:$A,[1]Sheet4!$A$6:$G$828,3,0) ->  | C166: =VLOOKUP($A:$A,[1]Sheet4!$A$6:$G$828,2,0) ->  | G166: =VLOOKUP($A:$A,[1]Sheet4!$A$6:$G$828,4,0) -> 
A167: 37329 | B167: =VLOOKUP($A:$A,[1]Sheet4!$A$6:$G$828,3,0) ->  | C167: =VLOOKUP($A:$A,[1]Sheet4!$A$6:$G$828,2,0) ->  | G167: =VLOOKUP($A:$A,[1]Sheet4!$A$6:$G$828,4,0) -> 
A168: 37330 | B168: =VLOOKUP($A:$A,[1]Sheet4!$A$6:$G$828,3,0) ->  | C168: =VLOOKUP($A:$A,[1]Sheet4!$A$6:$G$828,2,0) ->  | G168: =VLOOKUP($A:$A,[1]Sheet4!$A$6:$G$828,4,0) -> 
A169: 37331 | B169: =VLOOKUP($A:$A,[1]Sheet4!$A$6:$G$828,3,0) ->  | C169: =VLOOKUP($A:$A,[1]Sheet4!$A$6:$G$828,2,0) ->  | G169: =VLOOKUP($A:$A,[1]Sheet4!$A$6:$G$828,4,0) -> 
A170: 37332 | B170: =VLOOKUP($A:$A,[1]Sheet4!$A$6:$G$828,3,0) ->  | C170: =VLOOKUP($A:$A,[1]Sheet4!$A$6:$G$828,2,0) ->  | G170: =VLOOKUP($A:$A,[1]Sheet4!$A$6:$G$828,4,0) -> 
A171: 37333 | B171: =VLOOKUP($A:$A,[1]Sheet4!$A$6:$G$828,3,0) ->  | C171: =VLOOKUP($A:$A,[1]Sheet4!$A$6:$G$828,2,0) ->  | G171: =VLOOKUP($A:$A,[1]Sheet4!$A$6:$G$828,4,0) -> 
A172: 37334 | B172: =VLOOKUP($A:$A,[1]Sheet4!$A$6:$G$828,3,0) ->  | C172: =VLOOKUP($A:$A,[1]Sheet4!$A$6:$G$828,2,0) ->  | G172: =VLOOKUP($A:$A,[1]Sheet4!$A$6:$G$828,4,0) -> 
A173: 37335 | B173: =VLOOKUP($A:$A,[1]Sheet4!$A$6:$G$828,3,0) ->  | C173: =VLOOKUP($A:$A,[1]Sheet4!$A$6:$G$828,2,0) ->  | G173: =VLOOKUP($A:$A,[1]Sheet4!$A$6:$G$828,4,0) -> 
A174: 37336 | B174: =VLOOKUP($A:$A,[1]Sheet4!$A$6:$G$828,3,0) ->  | C174: =VLOOKUP($A:$A,[1]Sheet4!$A$6:$G$828,2,0) ->  | G174: =VLOOKUP($A:$A,[1]Sheet4!$A$6:$G$828,4,0) -> 
A175: 37337 | B175: =VLOOKUP($A:$A,[1]Sheet4!$A$6:$G$828,3,0) ->  | C175: =VLOOKUP($A:$A,[1]Sheet4!$A$6:$G$828,2,0) ->  | G175: =VLOOKUP($A:$A,[1]Sheet4!$A$6:$G$828,4,0) -> 
A176: 37338 | B176: =VLOOKUP($A:$A,[1]Sheet4!$A$6:$G$828,3,0) ->  | C176: =VLOOKUP($A:$A,[1]Sheet4!$A$6:$G$828,2,0) ->  | G176: =VLOOKUP($A:$A,[1]Sheet4!$A$6:$G$828,4,0) -> 
A177: 37339 | B177: =VLOOKUP($A:$A,[1]Sheet4!$A$6:$G$828,3,0) ->  | C177: =VLOOKUP($A:$A,[1]Sheet4!$A$6:$G$828,2,0) ->  | G177: =VLOOKUP($A:$A,[1]Sheet4!$A$6:$G$828,4,0) -> 
A178: 37340 | B178: =VLOOKUP($A:$A,[1]Sheet4!$A$6:$G$828,3,0) ->  | C178: =VLOOKUP($A:$A,[1]Sheet4!$A$6:$G$828,2,0) ->  | G178: =VLOOKUP($A:$A,[1]Sheet4!$A$6:$G$828,4,0) -> 
A179: 37341 | B179: =VLOOKUP($A:$A,[1]Sheet4!$A$6:$G$828,3,0) ->  | C179: =VLOOKUP($A:$A,[1]Sheet4!$A$6:$G$828,2,0) ->  | G179: =VLOOKUP($A:$A,[1]Sheet4!$A$6:$G$828,4,0) -> 
A180: 37342 | B180: =VLOOKUP($A:$A,[1]Sheet4!$A$6:$G$828,3,0) ->  | C180: =VLOOKUP($A:$A,[1]Sheet4!$A$6:$G$828,2,0) ->  | G180: =VLOOKUP($A:$A,[1]Sheet4!$A$6:$G$828,4,0) -> 
A181: 37343 | B181: =VLOOKUP($A:$A,[1]Sheet4!$A$6:$G$828,3,0) ->  | C181: =VLOOKUP($A:$A,[1]Sheet4!$A$6:$G$828,2,0) ->  | G181: =VLOOKUP($A:$A,[1]Sheet4!$A$6:$G$828,4,0) -> 
A182: 37344 | B182: =VLOOKUP($A:$A,[1]Sheet4!$A$6:$G$828,3,0) ->  | C182: =VLOOKUP($A:$A,[1]Sheet4!$A$6:$G$828,2,0) ->  | G182: =VLOOKUP($A:$A,[1]Sheet4!$A$6:$G$828,4,0) -> 
A183: 37345 | B183: =VLOOKUP($A:$A,[1]Sheet4!$A$6:$G$828,3,0) ->  | C183: =VLOOKUP($A:$A,[1]Sheet4!$A$6:$G$828,2,0) ->  | G183: =VLOOKUP($A:$A,[1]Sheet4!$A$6:$G$828,4,0) -> 
A184: 37346 | B184: =VLOOKUP($A:$A,[1]Sheet4!$A$6:$G$828,3,0) ->  | C184: =VLOOKUP($A:$A,[1]Sheet4!$A$6:$G$828,2,0) ->  | G184: =VLOOKUP($A:$A,[1]Sheet4!$A$6:$G$828,4,0) -> 
A185: 37347 | B185: =VLOOKUP($A:$A,[1]Sheet4!$A$6:$G$828,3,0) ->  | C185: =VLOOKUP($A:$A,[1]Sheet4!$A$6:$G$828,2,0) ->  | G185: =VLOOKUP($A:$A,[1]Sheet4!$A$6:$G$828,4,0) -> 
A186: 37348 | B186: =VLOOKUP($A:$A,[1]Sheet4!$A$6:$G$828,3,0) ->  | C186: =VLOOKUP($A:$A,[1]Sheet4!$A$6:$G$828,2,0) ->  | G186: =VLOOKUP($A:$A,[1]Sheet4!$A$6:$G$828,4,0) -> 
A187: 37349 | B187: =VLOOKUP($A:$A,[1]Sheet4!$A$6:$G$828,3,0) ->  | C187: =VLOOKUP($A:$A,[1]Sheet4!$A$6:$G$828,2,0) ->  | G187: =VLOOKUP($A:$A,[1]Sheet4!$A$6:$G$828,4,0) -> 
A188: 37350 | B188: =VLOOKUP($A:$A,[1]Sheet4!$A$6:$G$828,3,0) ->  | C188: =VLOOKUP($A:$A,[1]Sheet4!$A$6:$G$828,2,0) ->  | G188: =VLOOKUP($A:$A,[1]Sheet4!$A$6:$G$828,4,0) -> 
A189: 37351 | B189: =VLOOKUP($A:$A,[1]Sheet4!$A$6:$G$828,3,0) ->  | C189: =VLOOKUP($A:$A,[1]Sheet4!$A$6:$G$828,2,0) ->  | G189: =VLOOKUP($A:$A,[1]Sheet4!$A$6:$G$828,4,0) -> 
A190: 37352 | B190: =VLOOKUP($A:$A,[1]Sheet4!$A$6:$G$828,3,0) ->  | C190: =VLOOKUP($A:$A,[1]Sheet4!$A$6:$G$828,2,0) ->  | G190: =VLOOKUP($A:$A,[1]Sheet4!$A$6:$G$828,4,0) -> 
A191: 37353 | B191: =VLOOKUP($A:$A,[1]Sheet4!$A$6:$G$828,3,0) ->  | C191: =VLOOKUP($A:$A,[1]Sheet4!$A$6:$G$828,2,0) ->  | G191: =VLOOKUP($A:$A,[1]Sheet4!$A$6:$G$828,4,0) -> 
A192: 37354 | B192: =VLOOKUP($A:$A,[1]Sheet4!$A$6:$G$828,3,0) ->  | C192: =VLOOKUP($A:$A,[1]Sheet4!$A$6:$G$828,2,0) ->  | G192: =VLOOKUP($A:$A,[1]Sheet4!$A$6:$G$828,4,0) -> 
A193: 37355 | B193: =VLOOKUP($A:$A,[1]Sheet4!$A$6:$G$828,3,0) ->  | C193: =VLOOKUP($A:$A,[1]Sheet4!$A$6:$G$828,2,0) ->  | G193: =VLOOKUP($A:$A,[1]Sheet4!$A$6:$G$828,4,0) -> 
A194: 37356 | B194: =VLOOKUP($A:$A,[1]Sheet4!$A$6:$G$828,3,0) ->  | C194: =VLOOKUP($A:$A,[1]Sheet4!$A$6:$G$828,2,0) ->  | G194: =VLOOKUP($A:$A,[1]Sheet4!$A$6:$G$828,4,0) -> 
A195: 37357 | B195: =VLOOKUP($A:$A,[1]Sheet4!$A$6:$G$828,3,0) ->  | C195: =VLOOKUP($A:$A,[1]Sheet4!$A$6:$G$828,2,0) ->  | G195: =VLOOKUP($A:$A,[1]Sheet4!$A$6:$G$828,4,0) -> 
A196: =A195+1 -> 37358 | B196: =VLOOKUP($A:$A,[1]Sheet4!$A$6:$G$828,3,0) ->  | C196: =VLOOKUP($A:$A,[1]Sheet4!$A$6:$G$828,2,0) ->  | G196: =VLOOKUP($A:$A,[1]Sheet4!$A$6:$G$828,4,0) -> 
A197: 37359 | B197: =VLOOKUP($A:$A,[1]Sheet4!$A$6:$G$828,3,0) ->  | C197: =VLOOKUP($A:$A,[1]Sheet4!$A$6:$G$828,2,0) ->  | G197: =VLOOKUP($A:$A,[1]Sheet4!$A$6:$G$828,4,0) -> 
A198: 37360 | B198: =VLOOKUP($A:$A,[1]Sheet4!$A$6:$G$828,3,0) ->  | C198: =VLOOKUP($A:$A,[1]Sheet4!$A$6:$G$828,2,0) ->  | G198: =VLOOKUP($A:$A,[1]Sheet4!$A$6:$G$828,4,0) -> 
A199: 37361 | B199: =VLOOKUP($A:$A,[1]Sheet4!$A$6:$G$828,3,0) ->  | C199: =VLOOKUP($A:$A,[1]Sheet4!$A$6:$G$828,2,0) ->  | G199: =VLOOKUP($A:$A,[1]Sheet4!$A$6:$G$828,4,0) -> 
A200: 37362 | B200: =VLOOKUP($A:$A,[1]Sheet4!$A$6:$G$828,3,0) ->  | C200: =VLOOKUP($A:$A,[1]Sheet4!$A$6:$G$828,2,0) ->  | G200: =VLOOKUP($A:$A,[1]Sheet4!$A$6:$G$828,4,0) -> 
... 827 more rows

Sheet Setting
A1: Se. | B1: PIN Code | C1: Employees Name | D1: Jop | E1: E-mail | F1: Telephone
A2: =IF(B2="","",SUBTOTAL(103,$B$2:B2)) -> 1 | B2: 10 | C2: محمد | O2: Jops
A3: =IF(B3="","",SUBTOTAL(103,$B$2:B3)) -> 2 | B3: 11 | C3: احمد | O3: Manager
A4: =IF(B4="","",SUBTOTAL(103,$B$2:B4)) -> 3 | B4: 12 | C4: على | O4: Engineer
A5: =IF(B5="","",SUBTOTAL(103,$B$2:B5)) -> 4 | B5: 13 | C5: خذها | O5: Accountant
A6: =IF(B6="","",SUBTOTAL(103,$B$2:B6)) -> 5 | B6: 14 | C6: - | O6: Secretary
A7: =IF(B7="","",SUBTOTAL(103,$B$2:B7)) -> 6 | B7: 15 | C7: -
A8: =IF(B8="","",SUBTOTAL(103,$B$2:B8)) -> 7 | B8: 16 | C8: -
A9: =IF(B9="","",SUBTOTAL(103,$B$2:B9)) -> 8 | B9: 17 | C9: -
A10: =IF(B10="","",SUBTOTAL(103,$B$2:B10)) -> 9 | B10: 18 | C10: -
A11: =IF(B11="","",SUBTOTAL(103,$B$2:B11)) -> 10 | B11: 19 | C11: -
A12: =IF(B12="","",SUBTOTAL(103,$B$2:B12)) -> 11 | B12: 20 | C12: -
A13: =IF(B13="","",SUBTOTAL(103,$B$2:B13)) -> 
A14: =IF(B14="","",SUBTOTAL(103,$B$2:B14)) -> 
A15: =IF(B15="","",SUBTOTAL(103,$B$2:B15)) -> 
A16: =IF(B16="","",SUBTOTAL(103,$B$2:B16)) -> 
A17: =IF(B17="","",SUBTOTAL(103,$B$2:B17)) -> 
A18: =IF(B18="","",SUBTOTAL(103,$B$2:B18)) -> 
A19: =IF(B19="","",SUBTOTAL(103,$B$2:B19)) -> 
A20: =IF(B20="","",SUBTOTAL(103,$B$2:B20)) -> 
A21: =IF(B21="","",SUBTOTAL(103,$B$2:B21)) -> 
A22: =IF(B22="","",SUBTOTAL(103,$B$2:B22)) -> 
A23: =IF(B23="","",SUBTOTAL(103,$B$2:B23)) -> 
A24: =IF(B24="","",SUBTOTAL(103,$B$2:B24)) -> 
A25: =IF(B25="","",SUBTOTAL(103,$B$2:B25)) -> 
A26: =IF(B26="","",SUBTOTAL(103,$B$2:B26)) -> 
A27: =IF(B27="","",SUBTOTAL(103,$B$2:B27)) -> 
A28: =IF(B28="","",SUBTOTAL(103,$B$2:B28)) -> 
A29: =IF(B29="","",SUBTOTAL(103,$B$2:B29)) -> 
A30: =IF(B30="","",SUBTOTAL(103,$B$2:B30)) -> 
A31: =IF(B31="","",SUBTOTAL(103,$B$2:B31)) -> 
A32: =IF(B32="","",SUBTOTAL(103,$B$2:B32)) -> 
A33: =IF(B33="","",SUBTOTAL(103,$B$2:B33)) -> 
A34: =IF(B34="","",SUBTOTAL(103,$B$2:B34)) -> 
A35: =IF(B35="","",SUBTOTAL(103,$B$2:B35)) -> 
A36: =IF(B36="","",SUBTOTAL(103,$B$2:B36)) -> 
A37: =IF(B37="","",SUBTOTAL(103,$B$2:B37)) -> 
A38: =IF(B38="","",SUBTOTAL(103,$B$2:B38)) -> 
A39: =IF(B39="","",SUBTOTAL(103,$B$2:B39)) -> 
A40: =IF(B40="","",SUBTOTAL(103,$B$2:B40)) -> 
A41: =IF(B41="","",SUBTOTAL(103,$B$2:B41)) -> 
A42: =IF(B42="","",SUBTOTAL(103,$B$2:B42)) -> 
A43: =IF(B43="","",SUBTOTAL(103,$B$2:B43)) -> 
A44: =IF(B44="","",SUBTOTAL(103,$B$2:B44)) -> 
A45: =IF(B45="","",SUBTOTAL(103,$B$2:B45)) -> 
A46: =IF(B46="","",SUBTOTAL(103,$B$2:B46)) -> 
A47: =IF(B47="","",SUBTOTAL(103,$B$2:B47)) -> 
A48: =IF(B48="","",SUBTOTAL(103,$B$2:B48)) -> 
A49: =IF(B49="","",SUBTOTAL(103,$B$2:B49)) -> 
A50: =IF(B50="","",SUBTOTAL(103,$B$2:B50)) -> 
A51: =IF(B51="","",SUBTOTAL(103,$B$2:B51)) -> 
A52: =IF(B52="","",SUBTOTAL(103,$B$2:B52)) -> 
A53: =IF(B53="","",SUBTOTAL(103,$B$2:B53)) -> 
A54: =IF(B54="","",SUBTOTAL(103,$B$2:B54)) -> 
A55: =IF(B55="","",SUBTOTAL(103,$B$2:B55)) -> 
A56: =IF(B56="","",SUBTOTAL(103,$B$2:B56)) -> 
A57: =IF(B57="","",SUBTOTAL(103,$B$2:B57)) -> 
A58: =IF(B58="","",SUBTOTAL(103,$B$2:B58)) -> 
A59: =IF(B59="","",SUBTOTAL(103,$B$2:B59)) -> 
A60: =IF(B60="","",SUBTOTAL(103,$B$2:B60)) -> 
A61: =IF(B61="","",SUBTOTAL(103,$B$2:B61)) -> 
A62: =IF(B62="","",SUBTOTAL(103,$B$2:B62)) -> 
A63: =IF(B63="","",SUBTOTAL(103,$B$2:B63)) -> 
A64: =IF(B64="","",SUBTOTAL(103,$B$2:B64)) -> 
A65: =IF(B65="","",SUBTOTAL(103,$B$2:B65)) -> 
A66: =IF(B66="","",SUBTOTAL(103,$B$2:B66)) -> 
A67: =IF(B67="","",SUBTOTAL(103,$B$2:B67)) -> 
A68: =IF(B68="","",SUBTOTAL(103,$B$2:B68)) -> 
A69: =IF(B69="","",SUBTOTAL(103,$B$2:B69)) -> 
A70: =IF(B70="","",SUBTOTAL(103,$B$2:B70)) -> 
A71: =IF(B71="","",SUBTOTAL(103,$B$2:B71)) -> 
A72: =IF(B72="","",SUBTOTAL(103,$B$2:B72)) -> 
A73: =IF(B73="","",SUBTOTAL(103,$B$2:B73)) -> 
A74: =IF(B74="","",SUBTOTAL(103,$B$2:B74)) -> 
A75: =IF(B75="","",SUBTOTAL(103,$B$2:B75)) -> 
A76: =IF(B76="","",SUBTOTAL(103,$B$2:B76)) -> 
A77: =IF(B77="","",SUBTOTAL(103,$B$2:B77)) -> 
A78: =IF(B78="","",SUBTOTAL(103,$B$2:B78)) -> 
A79: =IF(B79="","",SUBTOTAL(103,$B$2:B79)) -> 
A80: =IF(B80="","",SUBTOTAL(103,$B$2:B80)) -> 
A81: =IF(B81="","",SUBTOTAL(103,$B$2:B81)) -> 
A82: =IF(B82="","",SUBTOTAL(103,$B$2:B82)) -> 
A83: =IF(B83="","",SUBTOTAL(103,$B$2:B83)) -> 
A84: =IF(B84="","",SUBTOTAL(103,$B$2:B84)) -> 
A85: =IF(B85="","",SUBTOTAL(103,$B$2:B85)) -> 
A86: =IF(B86="","",SUBTOTAL(103,$B$2:B86)) -> 
A87: =IF(B87="","",SUBTOTAL(103,$B$2:B87)) -> 
A88: =IF(B88="","",SUBTOTAL(103,$B$2:B88)) -> 
A89: =IF(B89="","",SUBTOTAL(103,$B$2:B89)) -> 
A90: =IF(B90="","",SUBTOTAL(103,$B$2:B90)) -> 
A91: =IF(B91="","",SUBTOTAL(103,$B$2:B91)) -> 
A92: =IF(B92="","",SUBTOTAL(103,$B$2:B92)) -> 
A93: =IF(B93="","",SUBTOTAL(103,$B$2:B93)) -> 
A94: =IF(B94="","",SUBTOTAL(103,$B$2:B94)) -> 
A95: =IF(B95="","",SUBTOTAL(103,$B$2:B95)) -> 
A96: =IF(B96="","",SUBTOTAL(103,$B$2:B96)) -> 
A97: =IF(B97="","",SUBTOTAL(103,$B$2:B97)) -> 
A98: =IF(B98="","",SUBTOTAL(103,$B$2:B98)) -> 
A99: =IF(B99="","",SUBTOTAL(103,$B$2:B99)) -> 
A100: =IF(B100="","",SUBTOTAL(103,$B$2:B100)) -> 
A101: =IF(B101="","",SUBTOTAL(103,$B$2:B101)) -> 
A102: =IF(B102="","",SUBTOTAL(103,$B$2:B102)) -> 
A103: =IF(B103="","",SUBTOTAL(103,$B$2:B103)) -> 
A104: =IF(B104="","",SUBTOTAL(103,$B$2:B104)) -> 
A105: =IF(B105="","",SUBTOTAL(103,$B$2:B105)) -> 
A106: =IF(B106="","",SUBTOTAL(103,$B$2:B106)) -> 
A107: =IF(B107="","",SUBTOTAL(103,$B$2:B107)) -> 
A108: =IF(B108="","",SUBTOTAL(103,$B$2:B108)) -> 
A109: =IF(B109="","",SUBTOTAL(103,$B$2:B109)) -> 
A110: =IF(B110="","",SUBTOTAL(103,$B$2:B110)) -> 
A111: =IF(B111="","",SUBTOTAL(103,$B$2:B111)) -> 
A112: =IF(B112="","",SUBTOTAL(103,$B$2:B112)) -> 
A113: =IF(B113="","",SUBTOTAL(103,$B$2:B113)) -> 
A114: =IF(B114="","",SUBTOTAL(103,$B$2:B114)) -> 
A115: =IF(B115="","",SUBTOTAL(103,$B$2:B115)) -> 
A116: =IF(B116="","",SUBTOTAL(103,$B$2:B116)) -> 
A117: =IF(B117="","",SUBTOTAL(103,$B$2:B117)) -> 
A118: =IF(B118="","",SUBTOTAL(103,$B$2:B118)) -> 
A119: =IF(B119="","",SUBTOTAL(103,$B$2:B119)) -> 
A120: =IF(B120="","",SUBTOTAL(103,$B$2:B120)) -> 
A121: =IF(B121="","",SUBTOTAL(103,$B$2:B121)) -> 
A122: =IF(B122="","",SUBTOTAL(103,$B$2:B122)) -> 
A123: =IF(B123="","",SUBTOTAL(103,$B$2:B123)) -> 
A124: =IF(B124="","",SUBTOTAL(103,$B$2:B124)) -> 
A125: =IF(B125="","",SUBTOTAL(103,$B$2:B125)) -> 
A126: =IF(B126="","",SUBTOTAL(103,$B$2:B126)) -> 
A127: =IF(B127="","",SUBTOTAL(103,$B$2:B127)) -> 
A128: =IF(B128="","",SUBTOTAL(103,$B$2:B128)) -> 
A129: =IF(B129="","",SUBTOTAL(103,$B$2:B129)) -> 
A130: =IF(B130="","",SUBTOTAL(103,$B$2:B130)) -> 
A131: =IF(B131="","",SUBTOTAL(103,$B$2:B131)) -> 
A132: =IF(B132="","",SUBTOTAL(103,$B$2:B132)) -> 
A133: =IF(B133="","",SUBTOTAL(103,$B$2:B133)) -> 
A134: =IF(B134="","",SUBTOTAL(103,$B$2:B134)) -> 
A135: =IF(B135="","",SUBTOTAL(103,$B$2:B135)) -> 
A136: =IF(B136="","",SUBTOTAL(103,$B$2:B136)) -> 
A137: =IF(B137="","",SUBTOTAL(103,$B$2:B137)) -> 
A138: =IF(B138="","",SUBTOTAL(103,$B$2:B138)) -> 
A139: =IF(B139="","",SUBTOTAL(103,$B$2:B139)) -> 
A140: =IF(B140="","",SUBTOTAL(103,$B$2:B140)) -> 
A141: =IF(B141="","",SUBTOTAL(103,$B$2:B141)) -> 
A142: =IF(B142="","",SUBTOTAL(103,$B$2:B142)) -> 
A143: =IF(B143="","",SUBTOTAL(103,$B$2:B143)) -> 
A144: =IF(B144="","",SUBTOTAL(103,$B$2:B144)) -> 
A145: =IF(B145="","",SUBTOTAL(103,$B$2:B145)) -> 
A146: =IF(B146="","",SUBTOTAL(103,$B$2:B146)) -> 
A147: =IF(B147="","",SUBTOTAL(103,$B$2:B147)) -> 
A148: =IF(B148="","",SUBTOTAL(103,$B$2:B148)) -> 
A149: =IF(B149="","",SUBTOTAL(103,$B$2:B149)) -> 
A150: =IF(B150="","",SUBTOTAL(103,$B$2:B150)) -> 
A151: =IF(B151="","",SUBTOTAL(103,$B$2:B151)) -> 
A152: =IF(B152="","",SUBTOTAL(103,$B$2:B152)) -> 
A153: =IF(B153="","",SUBTOTAL(103,$B$2:B153)) -> 
A154: =IF(B154="","",SUBTOTAL(103,$B$2:B154)) -> 
A155: =IF(B155="","",SUBTOTAL(103,$B$2:B155)) -> 
A156: =IF(B156="","",SUBTOTAL(103,$B$2:B156)) -> 
A157: =IF(B157="","",SUBTOTAL(103,$B$2:B157)) -> 
A158: =IF(B158="","",SUBTOTAL(103,$B$2:B158)) -> 
A159: =IF(B159="","",SUBTOTAL(103,$B$2:B159)) -> 
A160: =IF(B160="","",SUBTOTAL(103,$B$2:B160)) -> 
A161: =IF(B161="","",SUBTOTAL(103,$B$2:B161)) -> 
A162: =IF(B162="","",SUBTOTAL(103,$B$2:B162)) -> 
A163: =IF(B163="","",SUBTOTAL(103,$B$2:B163)) -> 
A164: =IF(B164="","",SUBTOTAL(103,$B$2:B164)) -> 
A165: =IF(B165="","",SUBTOTAL(103,$B$2:B165)) -> 
A166: =IF(B166="","",SUBTOTAL(103,$B$2:B166)) -> 
A167: =IF(B167="","",SUBTOTAL(103,$B$2:B167)) -> 
A168: =IF(B168="","",SUBTOTAL(103,$B$2:B168)) -> 
A169: =IF(B169="","",SUBTOTAL(103,$B$2:B169)) -> 
A170: =IF(B170="","",SUBTOTAL(103,$B$2:B170)) -> 
A171: =IF(B171="","",SUBTOTAL(103,$B$2:B171)) -> 
A172: =IF(B172="","",SUBTOTAL(103,$B$2:B172)) -> 
A173: =IF(B173="","",SUBTOTAL(103,$B$2:B173)) -> 
A174: =IF(B174="","",SUBTOTAL(103,$B$2:B174)) -> 
A175: =IF(B175="","",SUBTOTAL(103,$B$2:B175)) -> 
A176: =IF(B176="","",SUBTOTAL(103,$B$2:B176)) -> 
A177: =IF(B177="","",SUBTOTAL(103,$B$2:B177)) -> 
A178: =IF(B178="","",SUBTOTAL(103,$B$2:B178)) -> 
A179: =IF(B179="","",SUBTOTAL(103,$B$2:B179)) -> 
A180: =IF(B180="","",SUBTOTAL(103,$B$2:B180)) -> 
A181: =IF(B181="","",SUBTOTAL(103,$B$2:B181)) -> 
A182: =IF(B182="","",SUBTOTAL(103,$B$2:B182)) -> 
A183: =IF(B183="","",SUBTOTAL(103,$B$2:B183)) -> 
A184: =IF(B184="","",SUBTOTAL(103,$B$2:B184)) -> 
A185: =IF(B185="","",SUBTOTAL(103,$B$2:B185)) -> 
A186: =IF(B186="","",SUBTOTAL(103,$B$2:B186)) -> 
A187: =IF(B187="","",SUBTOTAL(103,$B$2:B187)) -> 
A188: =IF(B188="","",SUBTOTAL(103,$B$2:B188)) -> 
A189: =IF(B189="","",SUBTOTAL(103,$B$2:B189)) -> 
A190: =IF(B190="","",SUBTOTAL(103,$B$2:B190)) -> 
A191: =IF(B191="","",SUBTOTAL(103,$B$2:B191)) -> 
A192: =IF(B192="","",SUBTOTAL(103,$B$2:B192)) -> 
A193: =IF(B193="","",SUBTOTAL(103,$B$2:B193)) -> 
A194: =IF(B194="","",SUBTOTAL(103,$B$2:B194)) -> 
A195: =IF(B195="","",SUBTOTAL(103,$B$2:B195)) -> 
A196: =IF(B196="","",SUBTOTAL(103,$B$2:B196)) -> 
A197: =IF(B197="","",SUBTOTAL(103,$B$2:B197)) -> 
A198: =IF(B198="","",SUBTOTAL(103,$B$2:B198)) -> 
A199: =IF(B199="","",SUBTOTAL(103,$B$2:B199)) -> 
A200: =IF(B200="","",SUBTOTAL(103,$B$2:B200)) -> 
... 229 more rows
